bitfinex/quotes_ETHUSD_20250603
["timestamp","ask_amount","ask_price","bid_price","bid_amount"]
[1748975825493,3.83062191,2610.6,2610.1,12.98069176]
[1748975825900,3.83062191,2610.6,2610.1,9.14942362]
[1748975827292,3.83062191,2610.6,2610.1,12.98067932]
[1748975827496,10.07845627,2610.7,2610.1,12.98067932]
[1748975827995,3.83053807,2610.6,2610.1,12.98067932]
[1748975828671,3.83053807,2610.6,2610.1,12.98066618]
[1748975828874,3.83047284,2610.7,2610.2,3.8311081]
[1748975829077,6.247,2610.6,2610.1,12.98061375]
[1748975829319,10.07745712,2610.7,2610.1,9.14942362]
[1748975829691,3.83055198,2610.6,2610.1,12.98066123]
[1748975829902,3.83055198,2610.6,2610.1,9.14942362]
[1748975830425,3.83086271,2610.4,2610.1,9.14942362]
[1748975830774,3.83075918,2610.5,2610.1,9.14942362]
[1748975831211,3.83075918,2610.5,2610.2,8.0]
[1748975831418,10.07645026,2610.7,2610.2,8.0]
[1748975831419,3.83054078,2610.6,2610.2,8.0]
[1748975831628,6.244,2610.6,2610.2,8.0]
[1748975832119,10.07530895,2610.8,2610.2,11.83111098]
[1748975832319,4.72824636,2611.2,2610.5,8.0]
[1748975832488,6.245,2611.1,2610.7,9.14942362]
[1748975832693,3.82996374,2611.0,2610.5,8.0]
[1748975832893,3.83013003,2610.9,2610.5,8.0]
[1748975833472,3.83001137,2611.0,2610.4,12.98018031]
[1748975833674,3.83001137,2611.0,2610.5,3.8306618]
[1748975833905,3.83001137,2611.0,2610.4,12.98015079]
[1748975834321,3.83009973,2610.9,2610.4,9.14942362]
[1748975834677,3.830015,2611.0,2610.4,9.14942362]
[1748975834926,3.8301665,2610.9,2610.4,9.14942362]
[1748975835118,3.83001878,2611.0,2610.4,12.98021309]
[1748975835278,3.83014051,2610.9,2610.4,9.14942362]
[1748975835697,3.83032903,2610.8,2610.4,9.14942362]
[1748975836021,3.83032903,2610.8,2610.2,8.0]
[1748975836022,3.830545,2610.6,2610.2,8.0]
[1748975836227,3.8307543,2610.5,2610.1,9.14942362]
[1748975836432,3.830545,2610.6,2610.1,9.14942362]
[1748975836606,10.07741754,2610.7,2610.1,9.14942362]
[1748975836607,3.83070623,2610.5,2610.1,9.14942362]
[1748975836939,3.83062187,2610.6,2610.1,9.14942362]
[1748975837137,11.22426543,2610.7,2610.1,12.98067986]
[1748975837495,10.07746962,2610.7,2610.1,12.98067986]
[1748975837799,3.83055477,2610.6,2610.1,12.98067986]
[1748975838026,10.07751715,2610.7,2610.1,12.98067986]
[1748975838942,3.83053837,2610.6,2610.1,12.98067986]
[1748975839299,3.83032316,2610.8,2610.2,3.83107486]
[1748975839646,0.8985,2611.0,2610.4,3.83081487]
[1748975839844,3.829578,2611.3,2610.7,3.83030693]
[1748975840004,0.4715178,2611.2,2610.7,9.14942362]
[1748975840203,3.8298173,2611.1,2610.7,9.14942362]
[1748975840439,4.30121388,2611.2,2610.5,3.83056724]
[1748975840740,3.82988667,2611.1,2610.4,21.53023096]
[1748975841043,3.83005421,2611.0,2610.4,21.53021764]
[1748975841216,3.82985323,2611.1,2610.5,3.83057821]
[1748975842038,3.82985323,2611.1,2610.6,3.83052148]
[1748975842356,10.07785323,2611.1,2610.5,3.8305646]
[1748975842943,6.248,2611.1,2610.4,17.14942362]
[1748975843147,3.8302364,2610.9,2610.4,17.14942362]
[1748975843319,3.83069295,2610.5,2610.1,9.14942362]
[1748975843730,3.83060883,2610.6,2610.1,8.0]
[1748975844263,6.249,2610.7,2610.1,8.0]
[1748975844467,3.8310812,2610.3,2609.8,9.14942362]
[1748975844663,4.75817083,2610.1,2609.6,0.37974295]
[1748975844829,3.83154732,2610.0,2609.4,4.34220469]
[1748975845026,11.01217644,2610.1,2609.5,3.83214954]
[1748975845253,11.01217644,2610.1,2609.4,12.98171757]
[1748975845560,7.1809,2610.1,2609.6,3.83198683]
[1748975845721,6.254,2610.1,2609.5,11.83209123]
[1748975845921,6.254,2610.1,2609.4,9.14942362]
[1748975846260,10.08528611,2610.1,2609.6,3.83199919]
[1748975846560,10.08528611,2610.1,2609.6,8.0]
[1748975846918,10.08528611,2610.1,2609.6,8.38642608]
[1748975847361,6.254,2610.1,2609.6,12.21841792]
[1748975848445,10.08529778,2610.1,2609.6,12.21841792]
[1748975848661,6.254,2610.1,2609.6,12.21841792]
[1748975848868,6.254,2610.1,2609.7,3.8317942]
[1748975849385,4.70432968,2610.3,2609.7,3.8317942]
[1748975849584,6.252,2610.2,2609.7,12.98121782]
[1748975850179,10.08320196,2610.2,2609.7,9.14942362]
[1748975850667,10.08320196,2610.2,2609.7,12.98124969]
[1748975850829,1.621,2610.5,2609.7,9.14942362]
[1748975851036,6.251,2610.4,2609.9,3.83145837]
[1748975851435,6.25,2610.4,2610.0,12.98083917]
[1748975852078,6.25,2610.4,2610.0,9.14942362]
[1748975852283,3.83035914,2610.8,2610.0,9.14942362]
[1748975852436,3.8305961,2610.6,2610.0,12.9807654]
[1748975853279,3.83070209,2610.5,2610.0,9.14942362]
[1748975854300,7.1123,2610.7,2610.0,12.98081149]
[1748975854465,0.8613,2610.7,2610.0,12.98081149]
[1748975854647,3.83069278,2610.5,2610.0,12.98081149]
[1748975855774,3.83084061,2610.4,2610.0,8.0]
[1748975856151,3.83076657,2610.5,2610.0,3.83140659]
[1748975856586,3.83075451,2610.5,2609.9,8.0]
[1748975856891,3.83122456,2610.2,2609.6,9.31332678]
[1748975857048,3.83122456,2610.2,2609.7,3.83184366]
[1748975857700,3.83103953,2610.3,2609.9,8.0]
[1748975857851,3.83091894,2610.4,2609.9,8.0]
[1748975858044,3.83098639,2610.3,2609.9,8.0]
[1748975858364,3.83098639,2610.3,2609.7,11.83177745]
[1748975859559,3.83115787,2610.2,2609.7,11.83177745]
[1748975859766,3.83137231,2610.1,2609.7,8.0]
[1748975859967,3.83115729,2610.2,2609.7,8.0]
[1748975860301,3.83115729,2610.2,2609.7,11.83184542]
[1748975860677,4.69857584,2610.4,2609.9,11.83156172]
[1748975860872,0.8677,2610.4,2609.9,11.83156172]
[1748975861072,3.83108753,2610.3,2609.9,8.0]
[1748975861872,4.6986317,2610.4,2609.9,8.0]
[1748975862078,1.47725506,2610.5,2609.9,11.83145701]
[1748975862400,10.07679819,2610.5,2610.1,9.14942362]
[1748975862602,6.246,2610.5,2610.1,9.14942362]
[1748975862903,3.83091149,2610.4,2610.1,9.14942362]
[1748975863107,6.246,2610.5,2610.1,9.14942362]
[1748975863402,10.07677482,2610.5,2610.1,9.14942362]
[1748975863610,3.83090484,2610.4,2610.1,9.14942362]
[1748975864471,3.83104809,2610.3,2610.1,9.14942362]
[1748975864680,3.8309207,2610.4,2610.1,9.14942362]
[1748975864892,0.49258665,2611.2,2610.1,12.98055822]
[1748975865066,0.8934,2611.2,2610.7,9.14942362]
[1748975865280,3.82980353,2611.1,2611.0,4.39530028]
[1748975865487,3.82980353,2611.1,2610.8,4.39530028]
[1748975865805,3.82995821,2611.0,2610.8,4.39530028]
[1748975867522,3.82995821,2611.0,2610.6,9.14381444]
[1748975868816,3.8302436,2610.8,2610.3,7.76546807]
[1748975869539,3.8302436,2610.8,2610.3,11.59640528]
[1748975870581,3.8302436,2610.8,2610.3,7.76546807]
[1748975870894,3.83039913,2610.7,2610.4,8.0]
[1748975871096,4.66940556,2610.8,2610.4,8.0]
[1748975871631,4.66940556,2610.8,2610.3,7.76546807]
[1748975871921,4.66940556,2610.8,2610.4,8.0]
[1748975872729,3.8303916,2610.7,2610.4,8.0]
[1748975873022,3.8303916,2610.7,2610.0,12.24235867]
[1748975873023,3.83067225,2610.6,2610.0,15.93581444]
[1748975873226,3.83045189,2610.7,2610.2,8.0]
[1748975873387,4.66944016,2610.8,2610.2,3.83103681]
[1748975873585,4.66944016,2610.8,2610.1,11.83124024]
[1748975873799,3.83041681,2610.7,2610.2,3.83105048]
[1748975874321,3.83041681,2610.7,2610.1,8.0]
[1748975874531,3.83041681,2610.7,2610.1,11.83116367]
[1748975875061,3.83041681,2610.7,2610.2,3.83112281]
[1748975875234,4.66942423,2610.8,2610.3,9.14381444]
[1748975875434,3.8298155,2611.1,2610.6,12.97425587]
[1748975875612,10.0718155,2611.1,2610.6,9.14381444]
[1748975876025,3.82996808,2611.0,2610.6,9.14381444]
[1748975876344,3.83003838,2611.0,2610.6,9.14381444]
[1748975876512,10.07187931,2611.1,2610.6,9.14381444]
[1748975876715,10.07187931,2611.1,2610.6,12.97429725]
[1748975876919,6.242,2611.1,2610.6,9.14381444]
[1748975877114,3.83002605,2611.0,2610.6,9.14381444]
[1748975877315,10.07185408,2611.1,2610.6,12.97433034]
[1748975877526,10.07185408,2611.1,2610.6,12.97433978]
[1748975877838,6.242,2611.1,2610.6,9.14381444]
[1748975878045,3.82995168,2611.0,2610.6,9.14381444]
[1748975878715,10.07188352,2611.1,2610.6,9.14381444]
[1748975878930,6.239,2611.2,2610.9,9.14381444]
[1748975879117,3.82952955,2611.3,2610.9,9.14381444]
[1748975880638,10.07044253,2611.4,2610.9,9.14381444]
[1748975881116,10.070429,2611.4,2610.9,9.14381444]
[1748975881312,3.829429,2611.4,2610.9,12.97389841]
[1748975881539,4.68023364,2611.6,2611.0,3.82985223]
[1748975881741,6.241,2611.5,2610.9,12.97383888]
[1748975881938,3.82939959,2611.4,2610.9,12.97383888]
[1748975883253,3.82929753,2611.5,2610.9,12.97383888]
[1748975884038,10.9182256,2611.6,2611.0,3.8299428]
[1748975884232,10.9182256,2611.6,2611.0,4.21634634]
[1748975884432,7.0891,2611.6,2611.1,3.82977201]
[1748975884646,10.91818113,2611.6,2611.0,4.21626636]
[1748975884972,7.0891,2611.6,2610.9,9.14381444]
[1748975885179,10.91825995,2611.6,2611.0,3.82982995]
[1748975885574,3.82923082,2611.5,2611.0,3.82982995]
[1748975886944,3.82923082,2611.5,2610.9,12.97380716]
[1748975887266,3.82923082,2611.5,2611.0,3.82993595]
[1748975887430,3.82939134,2611.4,2610.9,12.97387899]
[1748975887635,10.91821261,2611.6,2610.9,12.97387899]
[1748975887844,3.82934342,2611.5,2610.9,12.97387899]
[1748975888168,3.82948202,2611.4,2610.9,9.14381444]
[1748975888470,3.82948202,2611.4,2610.9,12.97388664]
[1748975889046,3.82929897,2611.5,2610.9,12.97388664]
[1748975889353,3.82929897,2611.5,2611.1,4.39497673]
[1748975890352,3.82971601,2611.2,2610.9,4.39497673]
[1748975890570,3.82943056,2611.4,2610.9,4.39497673]
[1748975891188,3.82958907,2611.3,2610.9,4.39497673]
[1748975891490,7.0891,2611.6,2610.5,8.55]
[1748975891693,10.06130058,2611.5,2611.2,4.39497673]
[1748975892051,6.232,2611.5,2611.2,4.39497673]
[1748975892246,0.8281,2611.6,2611.2,3.8295839]
[1748975892449,0.02,2611.9,2611.2,3.8295839]
[1748975892450,4.7058001,2611.9,2611.4,4.39497673]
[1748975892689,0.8771,2611.9,2611.6,4.39497673]
[1748975892896,0.02,2611.9,2611.6,4.39497673]
[1748975893072,0.02,2611.9,2611.4,3.82928925]
[1748975893073,0.02,2611.9,2611.8,4.39497673]
[1748975895053,0.02,2611.9,2611.8,8.77375381]
[1748975896087,0.02,2611.9,2611.8,16.77375381]
[1748975897874,0.02,2611.9,2611.8,12.94497673]
[1748975898266,0.02,2611.9,2611.8,13.32768025]
[1748975898855,0.02,2611.9,2611.8,17.15645733]
[1748975899057,0.02,2611.9,2611.8,13.32768025]
[1748975899698,0.02,2611.9,2611.8,17.15645733]
[1748975899855,0.02,2611.9,2611.8,8.60645733]
[1748975900053,0.02,2611.9,2611.8,4.77768025]
[1748975902059,0.02,2611.9,2611.8,0.38270352]
[1748975902262,0.02,2611.9,2611.7,4.39497673]
[1748975903097,0.02,2611.9,2611.7,8.22386658]
[1748975903261,0.02,2611.9,2611.7,4.39497673]
[1748975903909,0.02,2611.9,2611.8,3.82877708]
[1748975905016,0.02,2611.9,2611.8,4.21023981]
[1748975908981,0.02,2611.9,2611.8,8.0]
[1748975909323,0.864,2612.8,2612.0,0.55]
[1748975909616,0.02,2612.9,2612.7,4.39497673]
[1748975909917,0.02,2612.9,2612.7,4.78072341]
[1748975911378,0.02,2612.9,2612.7,0.38574668]
[1748975911582,0.02,2612.9,2612.5,8.22266985]
[1748975912216,0.02,2612.9,2612.6,3.82760453]
[1748975912718,0.02,2612.9,2612.5,8.22264355]
[1748975913624,3.82731335,2612.8,2612.5,0.3751004]
[1748975913809,1.20073134,2612.7,2612.3,8.0]
[1748975914129,0.816,2612.7,2612.3,3.82792102]
[1748975915103,0.816,2612.7,2612.5,8.0]
[1748975915302,0.816,2612.8,2612.5,8.0]
[1748975916241,0.02,2612.9,2612.6,8.22249998]
[1748975916542,0.02,2612.9,2612.8,4.39497673]
[1748975916902,0.02,2612.9,2612.8,8.22228842]
[1748975918106,0.02,2612.9,2612.8,16.22228842]
[1748975918723,0.02,2612.9,2612.8,33.00828842]
[1748975918908,0.02,2612.9,2612.8,25.78754442]
[1748975920912,4.67695767,2613.8,2613.3,3.82645782]
[1748975921133,0.46969577,2613.7,2613.3,8.22143455]
[1748975921349,0.46969577,2613.7,2613.3,4.39497673]
[1748975921517,4.29577026,2613.7,2613.3,4.39497673]
[1748975921704,4.29577026,2613.7,2613.2,8.0]
[1748975921909,0.46969577,2613.7,2613.2,11.82669191]
[1748975922756,0.46969577,2613.7,2613.2,11.82671948]
[1748975924368,4.29579034,2613.7,2613.2,8.0]
[1748975925345,4.29579034,2613.7,2613.2,11.82671995]
[1748975925884,4.29579034,2613.7,2613.2,8.0]
[1748975926655,0.46969577,2613.7,2613.2,8.0]
[1748975926847,3.82606898,2613.7,2613.2,8.0]
[1748975928785,4.67703752,2613.8,2613.2,8.0]
[1748975928786,3.82617258,2613.6,2613.2,8.0]
[1748975929171,4.67697253,2613.8,2613.2,8.0]
[1748975929573,3.82610815,2613.7,2613.2,8.0]
[1748975930285,3.82623614,2613.6,2613.2,8.0]
[1748975930469,3.8267937,2613.2,2612.6,2.121]
[1748975930673,3.82666166,2613.3,2612.8,8.0]
[1748975931203,3.82666166,2613.3,2613.0,8.0]
[1748975932074,0.8738,2613.5,2613.1,4.39497673]
[1748975932650,0.8738,2613.8,2613.3,4.39497673]
[1748975932876,0.8738,2613.8,2613.5,4.39497673]
[1748975933080,0.02,2613.9,2613.5,8.22125404]
[1748975933392,3.82586986,2613.8,2613.4,8.0]
[1748975935293,3.82609352,2613.7,2613.4,8.0]
[1748975935454,3.82592731,2613.8,2613.4,8.0]
[1748975936582,3.82608599,2613.7,2613.4,8.0]
[1748975936888,3.82585091,2613.8,2613.4,8.0]
[1748975937055,3.82589946,2613.8,2613.4,8.0]
[1748975937254,3.82608206,2613.7,2613.4,8.0]
[1748975937452,3.82615884,2613.6,2613.4,8.0]
[1748975937658,3.82626027,2613.6,2613.4,8.0]
[1748975937885,3.82607494,2613.7,2613.2,8.0]
[1748975938203,4.67875056,2613.7,2613.2,8.0]
[1748975938495,0.02,2613.9,2613.6,8.0]
[1748975938797,0.02,2613.9,2613.7,4.39497673]
[1748975939154,0.02,2613.9,2613.8,8.0]
[1748975940154,0.02,2613.9,2613.8,13.96292542]
[1748975940368,0.8026,2614.7,2614.2,3.82518554]
[1748975940592,4.62726007,2614.7,2614.3,4.39497673]
[1748975940809,1.26732601,2614.7,2614.2,8.0]
[1748975940970,3.82502522,2614.4,2613.9,7.84]
[1748975941167,3.82502522,2614.4,2613.9,12.23497673]
[1748975941399,3.82490192,2614.5,2613.9,12.23497673]
[1748975941573,3.82517812,2614.3,2613.9,12.23497673]
[1748975941783,4.62777812,2614.3,2613.9,12.61037816]
[1748975942097,0.8026,2614.3,2613.9,0.37540143]
[1748975942312,0.8026,2614.3,2613.8,11.82580817]
[1748975943113,0.8026,2614.3,2613.9,3.8256928]
[1748975943257,0.8026,2614.3,2613.9,8.22066953]
[1748975943759,0.8026,2614.3,2613.9,4.39497673]
[1748975944412,4.62771712,2614.3,2613.9,4.39497673]
[1748975945199,4.62771712,2614.3,2613.8,4.39497673]
[1748975946389,0.8493,2614.1,2613.3,7.837]
[1748975946593,0.8493,2614.1,2613.5,3.82621232]
[1748975946798,3.82527704,2614.2,2613.8,4.39497673]
[1748975946959,3.82518227,2614.3,2613.8,4.39497673]
[1748975947866,3.82535707,2614.2,2613.6,8.22106397]
[1748975948067,4.68046676,2614.2,2613.6,8.22106397]
[1748975948267,3.82540995,2614.1,2613.6,8.22106397]
[1748975948565,4.68042908,2614.2,2613.6,8.22106397]
[1748975949786,0.85510969,2614.2,2613.7,3.82599156]
[1748975950095,3.82521625,2614.3,2613.6,8.22108367]
[1748975950289,3.82521625,2614.3,2613.7,3.82584816]
[1748975950483,3.82521625,2614.3,2613.6,8.22108367]
[1748975950684,0.9006,2614.4,2613.6,8.22108367]
[1748975950685,4.72563195,2614.4,2613.7,3.82592178]
[1748975951005,4.72563195,2614.4,2613.9,3.8256271]
[1748975951006,0.9006,2614.4,2613.9,3.8256271]
[1748975951574,4.72557344,2614.4,2613.9,3.8256271]
[1748975951770,3.82511655,2614.3,2613.8,8.22074647]
[1748975951981,3.82511655,2614.3,2613.8,4.39497673]
[1748975952206,0.9006,2614.4,2613.9,3.82570105]
[1748975952736,4.72559101,2614.4,2613.8,8.22074905]
[1748975953194,0.9006,2614.4,2614.0,8.0]
[1748975953937,3.82487435,2614.5,2614.0,8.22051773]
[1748975954125,4.70218809,2614.8,2614.2,4.39497673]
[1748975954416,4.70218809,2614.8,2614.4,4.39497673]
[1748975954601,4.70218809,2614.8,2614.2,8.2201128]
[1748975954802,0.8777,2614.8,2614.3,3.82506253]
[1748975954999,0.8777,2614.8,2614.4,4.39497673]
[1748975955201,0.8777,2614.8,2614.2,3.82515363]
[1748975955378,0.8777,2614.8,2614.2,8.22013036]
[1748975955574,4.70210263,2614.8,2614.0,6.247]
[1748975955769,3.82493418,2614.5,2614.0,7.857]
[1748975955973,4.7024883,2614.6,2614.1,11.82539623]
[1748975956169,4.7024883,2614.6,2614.1,8.0]
[1748975956433,3.82484005,2614.5,2614.1,8.0]
[1748975956579,4.29680067,2614.7,2614.1,8.0]
[1748975956781,3.82483876,2614.5,2614.1,8.0]
[1748975956997,3.82475334,2614.6,2614.1,8.0]
[1748975957184,3.82475334,2614.6,2614.0,8.0]
[1748975957395,3.82475334,2614.6,2614.0,11.82541547]
[1748975958139,3.82475334,2614.6,2614.1,3.82540431]
[1748975958491,3.82475334,2614.6,2614.0,11.82548172]
[1748975959422,4.29677576,2614.7,2614.0,8.0]
[1748975959623,3.8245655,2614.7,2614.2,3.82524206]
[1748975959827,0.8777,2614.8,2614.2,3.82524206]
[1748975960133,3.82460926,2614.7,2614.1,8.22031597]
[1748975960718,3.82468596,2614.6,2614.1,8.22031597]
[1748975960916,4.70210467,2614.8,2613.9,12.05998143]
[1748975960917,0.8663,2614.3,2613.9,1.98732243]
[1748975961248,4.69143842,2614.3,2613.9,1.98732243]
[1748975961445,3.82545338,2614.1,2613.9,1.98732243]
[1748975961604,3.82545338,2614.1,2613.9,0.37732243]
[1748975961804,3.82531249,2614.2,2613.7,1.61]
[1748975962345,0.8663,2614.3,2613.6,8.0]
[1748975962642,3.82467277,2614.7,2614.1,4.39497673]
[1748975962844,3.82474697,2614.6,2614.1,4.39497673]
[1748975963142,0.824,2614.8,2614.1,4.39497673]
[1748975963343,3.82469678,2614.6,2614.1,4.39497673]
[1748975963909,3.82491426,2614.5,2614.0,8.0]
[1748975964140,0.824,2614.4,2613.9,12.19920377]
[1748975964328,0.824,2614.4,2613.9,11.82568987]
[1748975964730,0.824,2614.4,2613.9,8.0]
[1748975964964,0.824,2614.4,2613.6,8.55]
[1748975965106,3.82519486,2614.3,2613.8,8.0]
[1748975965541,3.82515784,2614.3,2613.8,8.0]
[1748975965760,4.67257063,2614.3,2613.7,1.621]
[1748975965923,3.82547988,2614.1,2613.6,8.0]
[1748975966323,3.82547988,2614.1,2613.6,11.82613214]
[1748975966324,0.824,2614.0,2613.6,11.82613214]
[1748975966749,4.64955941,2614.0,2613.6,8.0]
[1748975966947,4.64961962,2614.0,2613.4,1.621]
[1748975967261,3.82592368,2613.8,2613.3,8.0]
[1748975967483,0.865,2613.6,2613.1,4.64045951]
[1748975967641,0.865,2613.6,2613.1,3.82685836]
[1748975967857,0.865,2613.6,2613.1,8.22183509]
[1748975968036,4.69075684,2613.9,2613.3,8.0]
[1748975968239,5.54238383,2613.9,2613.3,3.82650281]
[1748975968448,3.82586319,2613.8,2613.2,11.82664215]
[1748975969062,5.54233221,2613.9,2613.2,11.82664215]
[1748975969063,5.54240238,2613.9,2613.2,11.82664215]
[1748975969375,3.82587578,2613.8,2613.2,11.82664716]
[1748975969571,5.54240597,2613.9,2613.3,3.82657137]
[1748975970260,3.82593595,2613.8,2613.2,11.82664839]
[1748975970665,3.82593595,2613.8,2613.3,3.8265581]
[1748975971171,5.54240275,2613.9,2613.3,3.8265581]
[1748975971377,1.71662699,2613.9,2613.5,8.0]
[1748975971576,1.71662699,2613.9,2613.5,11.82625718]
[1748975971869,1.71662699,2613.9,2613.4,11.8263475]
[1748975972250,1.71662699,2613.9,2613.3,8.22153074]
[1748975972454,1.71662699,2613.9,2613.4,3.82628993]
[1748975972639,1.71662699,2613.9,2613.5,3.82627116]
[1748975972840,1.71662699,2613.9,2613.4,3.8262962]
[1748975973036,0.865,2613.9,2613.5,4.39497673]
[1748975973241,0.8652,2614.1,2613.7,8.22084975]
[1748975973442,0.8652,2614.4,2613.9,14.39497673]
[1748975973643,0.8652,2614.4,2613.9,8.2205492]
[1748975973843,0.8652,2614.4,2614.0,3.82546841]
[1748975974234,0.8652,2614.4,2614.1,3.82527622]
[1748975974439,0.8652,2614.4,2614.0,3.82546841]
[1748975974440,0.8652,2614.4,2613.9,4.39497673]
[1748975974755,0.8652,2614.4,2614.1,3.82529875]
[1748975975077,0.8652,2614.4,2614.0,3.82546418]
[1748975975240,0.8652,2614.4,2614.1,3.82540214]
[1748975975878,0.8652,2614.4,2614.0,3.82543808]
[1748975976279,0.8652,2614.4,2614.1,3.82539588]
[1748975976476,0.8652,2614.4,2614.0,3.82547195]
[1748975976878,0.8652,2614.4,2614.0,3.82550658]
[1748975977176,0.8652,2614.4,2614.1,3.82534416]
[1748975977379,3.84430362,2614.9,2614.2,3.82525093]
[1748975977583,0.807,2614.6,2613.9,4.77224505]
[1748975978077,0.807,2614.6,2614.2,3.82522955]
[1748975979489,0.807,2614.6,2614.3,10.0]
[1748975981154,0.83,2614.8,2614.2,7.550819]
[1748975981471,0.02,2614.9,2614.7,3.82453053]
[1748975981989,0.02,2614.9,2614.6,3.82464657]
[1748975981990,0.02,2614.9,2614.6,3.82457855]
[1748975982583,0.02,2614.9,2614.6,3.82465688]
[1748975982794,0.02,2614.9,2614.7,10.0]
[1748975982951,0.02,2614.9,2614.6,8.0]
[1748975984114,0.02,2614.9,2614.5,11.8248144]
[1748975984452,0.02,2614.9,2614.5,8.0]
[1748975984853,0.02,2614.9,2614.5,11.82479102]
[1748975985995,0.02,2614.9,2614.5,8.0]
[1748975986202,0.02,2614.9,2614.5,11.82481978]
[1748975989474,0.02,2614.9,2614.8,16.219361]
[1748975989771,0.02,2614.9,2614.8,26.219361]
[1748975990082,0.02,2614.9,2614.8,26.769361]
[1748975990288,0.02,2614.9,2614.8,27.198266]
[1748975999243,0.02,2614.9,2614.8,27.195266]
[1748976001829,0.8252,2615.5,2615.4,3.82350692]
[1748976002031,0.8929,2615.7,2615.4,11.82350692]
[1748976002208,0.8929,2615.7,2615.5,3.82328986]
[1748976002836,0.9129,2615.9,2615.6,8.0]
[1748976003006,0.9129,2615.9,2615.7,3.82306839]
[1748976003343,0.9129,2615.9,2615.7,0.23330246]
[1748976003502,0.9129,2615.9,2615.6,0.37975408]
[1748976003707,0.02,2615.9,2615.8,8.21789897]
[1748976003919,0.02,2615.9,2615.8,16.21789897]
[1748976004118,0.02,2615.9,2615.8,8.0]
[1748976004119,3.8427761,2615.9,2615.8,8.0]
[1748976004348,5.20924371,2615.9,2615.8,8.0]
[1748976005450,0.8934,2615.8,2615.0,4.90497673]
[1748976005657,3.82318441,2615.7,2615.2,8.0]
[1748976005816,4.71667769,2615.6,2615.1,9.626]
[1748976006007,0.8934,2615.6,2615.1,9.86814964]
[1748976006207,5.18832964,2615.6,2615.1,13.44990362]
[1748976006448,1.36506777,2615.6,2615.2,3.82373379]
[1748976006645,1.36506777,2615.6,2615.1,13.44987238]
[1748976006820,1.36506777,2615.6,2615.2,3.82377473]
[1748976007039,0.8934,2615.6,2615.2,3.82377473]
[1748976007344,0.8934,2615.6,2615.1,9.626]
[1748976007659,0.8934,2615.6,2615.1,9.86640411]
[1748976007827,0.8934,2615.6,2615.4,8.0]
[1748976008620,0.8934,2615.6,2615.2,8.0]
[1748976008827,0.8934,2615.6,2615.3,3.82364978]
[1748976009026,0.8934,2615.6,2615.2,11.82368953]
[1748976009452,0.8934,2615.6,2615.4,8.0]
[1748976010168,0.8934,2615.6,2615.0,4.77026177]
[1748976010385,5.18831477,2615.6,2615.2,8.0]
[1748976010677,0.8934,2615.6,2615.2,11.82373461]
[1748976010883,0.8934,2615.6,2615.2,11.82366614]
[1748976011087,0.8934,2615.6,2615.4,8.0]
[1748976011229,0.8934,2615.6,2615.4,3.82349086]
[1748976011431,0.8934,2615.6,2615.4,8.0]
[1748976012092,0.8934,2615.6,2615.3,8.0]
[1748976012650,0.8934,2615.6,2615.3,3.82363664]
[1748976013379,0.8934,2615.6,2615.2,11.82377747]
[1748976013671,0.8934,2615.6,2615.3,3.82364765]
[1748976014195,0.8662,2615.8,2615.6,3.82314867]
[1748976014332,0.02,2615.9,2615.5,11.82336073]
[1748976014661,0.02,2615.9,2615.8,3.82292224]
[1748976015039,0.02,2615.9,2615.8,16.21789897]
[1748976015466,0.02,2615.9,2615.8,11.82292224]
[1748976016548,0.02,2615.9,2615.8,8.0]
[1748976016750,0.02,2615.9,2615.8,11.82292224]
[1748976017171,0.02,2615.9,2615.8,8.0]
[1748976017372,0.02,2615.9,2615.6,8.0]
[1748976017542,0.846,2615.8,2615.7,10.0]
[1748976018061,0.846,2615.8,2615.6,5.44921283]
[1748976018455,0.846,2615.8,2615.7,3.82306839]
[1748976018677,0.02,2615.9,2615.8,8.0]
[1748976018971,0.02,2615.9,2615.8,3.82292224]
[1748976019171,0.02,2615.9,2615.8,8.0]
[1748976020469,0.02,2615.9,2615.8,11.82292224]
[1748976020670,0.02,2615.9,2615.8,3.58245054]
[1748976020875,0.02,2615.9,2615.7,3.82299963]
[1748976021051,0.02,2615.9,2615.8,3.82292224]
[1748976021252,0.02,2615.9,2615.8,18.21789897]
[1748976021476,0.02,2615.9,2615.8,8.21789897]
[1748976025181,0.02,2615.9,2615.8,13.82292224]
[1748976025391,0.02,2615.9,2615.7,8.0]
[1748976025566,0.02,2615.9,2615.7,15.852]
[1748976025772,0.02,2615.9,2615.8,3.82292224]
[1748976027764,0.02,2615.9,2615.8,8.21789897]
[1748976029806,0.02,2615.9,2615.8,4.39497673]
[1748976030188,0.02,2615.9,2615.8,8.21789897]
[1748976031809,0.02,2615.9,2615.8,16.21789897]
[1748976032173,1.93084045,2616.3,2616.2,3.82233774]
[1748976032174,1.07044045,2616.3,2616.2,3.82233774]
[1748976033310,1.07044045,2616.3,2616.1,11.82240481]
[1748976033809,1.07044045,2616.3,2616.1,8.0]
[1748976034010,0.8696,2616.2,2616.1,8.0]
[1748976034195,1.07044045,2616.3,2616.1,11.82248385]
[1748976034604,1.07044045,2616.3,2616.2,16.21731447]
[1748976036373,0.823,2616.8,2616.7,3.82160736]
[1748976036587,0.02,2616.9,2616.6,8.0]
[1748976036816,3.82178882,2616.6,2616.2,7.846]
[1748976036990,0.8083,2616.4,2616.0,3.102171]
[1748976037312,0.8083,2616.4,2616.2,8.0]
[1748976037514,0.8083,2616.4,2615.8,8.0]
[1748976037681,0.8083,2616.4,2615.7,3.82306562]
[1748976037874,4.62431411,2616.3,2615.8,1.617]
[1748976038078,5.46895063,2616.3,2615.8,1.617]
[1748976038476,5.46895063,2616.3,2615.8,9.617]
[1748976038699,5.46895063,2616.3,2615.8,13.43992013]
[1748976038985,3.82243444,2616.2,2615.8,9.617]
[1748976039319,3.82243444,2616.2,2615.6,8.0]
[1748976039320,3.82273083,2616.0,2615.6,8.0]
[1748976039487,4.62455236,2616.1,2615.6,8.0]
[1748976039800,3.82263371,2616.0,2615.6,8.0]
[1748976040005,3.82270165,2616.0,2615.6,8.0]
[1748976041003,3.82283806,2615.9,2615.6,8.0]
[1748976041393,3.82294351,2615.8,2615.3,11.82358478]